lending/lending_fUSD_20240131
["ID","MTS","AMOUNT","RATE_DAILY","PERIOD"]
[313096706,1706739032666,-158.76912404,0.00022598,2]
[313096708,1706739032675,-2790.08508505,0.00022598,2]
[313096709,1706739032684,-181.43729233,0.00022598,2]
[313096710,1706739032693,-2289.90164168,0.00022598,2]
[313096711,1706739032702,-3561.79,0.00022598,2]
[313096712,1706739032710,-1632.45,0.00022598,2]
[313096713,1706739032719,-1535.8,0.00022598,2]
[313096714,1706739032728,-218.45729164,0.00022598,2]
[313096715,1706739032737,-6920.02690777,0.00022598,2]
[313096716,1706739032746,-16151.35,0.00022598,2]
[313096717,1706739032755,-1007.8,0.00022598,2]
[313096718,1706739032763,-4256.30556535,0.00022598,2]
[313096719,1706739032773,-1330.28432919,0.00022598,2]
[313096721,1706739032782,-2901.94258728,0.00022598,2]
[313096722,1706739032791,-993.55703931,0.00022598,2]
[313096724,1706739032800,-260.76614424,0.00022598,2]
[313096727,1706739032810,-1307.6163,0.00022598,2]
[313096729,1706739032819,-2093.54970602,0.00022599,4]
[313096731,1706739032829,-46891.51042174,0.000226,2]
[313096734,1706739032848,-6857.37474907,0.000226,2]
[313096736,1706739032859,-3658.5963647,0.000226,2]
[313096755,1706739039214,-48990.60303902,0.000226,2]
[313096757,1706739039226,-23311.27064522,0.000226,2]
[313096759,1706739039235,-177.95142905,0.00022604,2]
[313096761,1706739039245,-155.0,0.0002261,2]
[313096763,1706739039254,-177.95142905,0.00022625,2]
[313096765,1706739039263,-751.99,0.00022646,2]
[313096767,1706739039272,-2696.09,0.00022646,2]
[313096769,1706739039281,-4236.76,0.00022646,2]
[313096771,1706739039290,-177.95142905,0.00022646,2]
[313096772,1706739039299,-155.11,0.00022648,2]
[313096773,1706739039309,-177.95142905,0.00022667,2]
[313096774,1706739039318,-177.95142905,0.00022688,2]
[313096775,1706739039331,-180.57939959,0.00022697,2]
[313096776,1706739039340,-308.74317773,0.00022699,2]
[313096777,1706739039350,-168.22698069,0.00022699,2]
[313096778,1706739039360,-177.95142905,0.0002271,2]
[313096779,1706739039369,-180.57939953,0.00022726,2]
[313096780,1706739039378,-168.22698066,0.00022728,2]
[313096781,1706739039390,-177.95142905,0.00022731,2]
[313096782,1706739039400,-308.74317773,0.00022749,2]
[313096783,1706739039409,-177.95142905,0.00022752,2]
[313096784,1706739039419,-180.57939953,0.00022755,2]
[313096785,1706739039430,-168.22698066,0.00022756,2]
[313096786,1706739039439,-234.77083351,0.0002277,2]
[313096787,1706739039449,-177.95142905,0.00022773,2]
[313096788,1706739039458,-180.57939953,0.00022784,2]
[313096789,1706739039468,-168.22698066,0.00022785,2]
[313096790,1706739039477,-177.95142905,0.00022794,2]
[313096791,1706739039486,-168.42606924,0.00022797,2]
[313096792,1706739039496,-500.0,0.00022797,2]
[313096793,1706739039505,-500.0,0.00022797,2]
[313096794,1706739039516,-500.0,0.00022797,2]
[313096795,1706739039526,-500.0,0.00022797,2]
[313096796,1706739039535,-500.0,0.00022797,2]
[313096797,1706739039545,-260.82217878,0.00022797,2]
[313096798,1706739039554,-500.0,0.00022797,2]
[313096799,1706739039563,-500.0,0.00022797,2]
[313096800,1706739039573,-500.0,0.00022797,2]
[313096801,1706739039582,-500.0,0.00022797,2]
[313096802,1706739039590,-500.0,0.00022797,2]
[313096803,1706739039599,-500.0,0.00022797,2]
[313096804,1706739039608,-500.0,0.00022797,2]
[313096805,1706739039617,-500.0,0.00022797,2]
[313096806,1706739039626,-500.0,0.00022797,2]
[313096807,1706739039638,-500.0,0.00022797,2]
[313096809,1706739039647,-500.0,0.00022797,2]
[313096811,1706739039656,-500.0,0.00022797,2]
[313096814,1706739039669,-500.0,0.00022797,2]
[313096816,1706739039678,-500.0,0.00022797,2]
[313096818,1706739039687,-500.0,0.00022797,2]
[313096820,1706739039696,-373.42057561,0.00022797,2]
[313096822,1706739039709,-126.57942439,0.00022797,2]
[313096824,1706739039718,-500.0,0.00022797,2]
[313096826,1706739039727,-500.0,0.00022797,2]
[313096828,1706739039736,-500.0,0.00022797,2]
[313096829,1706739039745,-500.0,0.00022797,2]
[313096830,1706739039754,-500.0,0.00022797,2]
[313096831,1706739039763,-500.0,0.00022797,2]
[313096832,1706739039772,-500.0,0.00022797,2]
[313096833,1706739039782,-500.0,0.00022797,2]
[313096834,1706739039792,-500.0,0.00022797,2]
[313096835,1706739039801,-500.0,0.00022797,2]
[313096836,1706739039811,-500.0,0.00022797,2]
[313096837,1706739039820,-500.0,0.00022797,2]
[313096838,1706739039830,-500.0,0.00022797,2]
[313096839,1706739039840,-500.0,0.00022797,2]
[313096840,1706739039850,-466.8806844,0.00022797,2]
[313096841,1706739039859,-66968.2965852,0.00022798,2]
[313096842,1706739039871,-40762.57313624,0.00022798,2]
[313096843,1706739039896,-293.08,0.00022697,2]
[313096844,1706739039906,-4735.96993774,0.00022798,2]
[313096845,1706739039918,-5722.98154893,0.00022798,2]
[313096846,1706739039957,-3464.4763834,0.00022798,2]
[313096847,1706739039968,-938092.45735206,0.00022798,2]
[313096848,1706739039978,-41501.8224,0.00022799,2]
[313096849,1706739039989,-22656.5085,0.00022799,2]
[313096850,1706739039998,-100000.0,0.00022799,2]
[313096851,1706739040007,-308.74317773,0.000228,2]
[313096852,1706739040016,-155.27871789,0.000228,2]
[313096853,1706739040025,-168.28604614,0.000228,2]
[313096854,1706739040037,-181.70536632,0.000228,2]
[313096855,1706739040048,-895.7880857,0.000228,2]
[313096856,1706739040057,-986.10786046,0.000228,2]
[313096857,1706739040067,-180.57939953,0.00022813,2]
[313096858,1706739040077,-168.22698066,0.00022814,2]
[313096860,1706739040087,-177.95142905,0.00022815,2]
[313096861,1706739040097,-177.95142905,0.00022837,2]
[313096862,1706739040106,-155.11,0.0002284,2]
[313096863,1706739040115,-180.57939953,0.00022842,2]
[313096864,1706739040125,-168.22698066,0.00022843,2]
[313096865,1706739040136,-308.74317773,0.0002285,2]
[313096866,1706739040146,-895.7880857,0.0002285,2]
[313096867,1706739040155,-986.10786044,0.0002285,2]
[313096868,1706739040164,-177.95142905,0.00022858,2]
[313096869,1706739040173,-180.57939953,0.00022871,2]
[313096870,1706739040183,-168.22698066,0.00022871,2]
[313096871,1706739040192,-177.95142905,0.00022879,2]
[313096872,1706739040202,-392006.979702,0.000229,2]
[313096873,1706739040211,-308.74317773,0.000229,2]
[313096874,1706739040220,-177.95142905,0.000229,2]
[313096875,1706739040230,-168.22698066,0.000229,2]
[313096876,1706739040239,-156.97580798,0.000229,2]
[313096877,1706739040248,-161.96428571,0.000229,2]
[313096878,1706739040257,-180.57939953,0.000229,2]
[313096879,1706739040267,-570.4242663,0.000229,6]
[313096880,1706739040276,-895.7880857,0.000229,2]
[313096881,1706739040286,-986.10786044,0.000229,2]
[313096882,1706739040295,-531.04108679,0.00022999,2]
[313096883,1706739040306,-272.92072174,0.00022999,2]
[313096884,1706739040315,-507.84111316,0.00022999,2]
[313096885,1706739040324,-352.42071681,0.00022999,2]
[313096886,1706739040333,-500.0,0.00022999,2]
[313096887,1706739040343,-415.55929241,0.00022999,2]
[313096888,1706739040363,-199.48336114,0.00022999,2]
[313096889,1706739040373,-500.0,0.00022999,2]
[313096890,1706739040384,-377.56098385,0.00022999,2]
[313096891,1706739040394,-500.0,0.00022999,2]
[313096892,1706739040403,-367.61818888,0.00022999,2]
[313096893,1706739040413,-2621.12800713,0.00023,3]
[313096894,1706739040423,-6582902.16416117,0.00023,2]
[313096895,1706739040436,-2345.49457667,0.00023,2]
[313096896,1706739040448,-20595.49484518,0.00023,2]
[313096907,1706739040898,-1017.80621206,0.00023,2]
[313096909,1706739040982,-1813.69685148,0.00023,2]
[313096910,1706739040994,-1458.89627204,0.00023,2]
[313096911,1706739041006,-391.0305,0.00023,2]
[313096912,1706739041050,-660.87471969,0.00023,2]
[313096914,1706739043203,-697.47598461,0.00023,2]
[313096915,1706739043216,-590.96325,0.00023,2]
[313096916,1706739043231,-303.84007919,0.00023,2]
[313096917,1706739043284,-1402.38,0.00023,2]
[313096937,1706739043427,-713.3113838,0.00023,2]
[313096939,1706739043441,-1062.44428438,0.00023,2]
[313096941,1706739043456,-3225.95545477,0.00023,2]
[313096944,1706739043470,-59397.95394092,0.00023,2]
[313096948,1706739043542,-279.603,0.00023,2]
[313096949,1706739043619,-8060.93983845,0.00023,2]
[313096950,1706739043686,-1221.31804581,0.00023,2]
[313096957,1706739046368,-2272.69999999,0.000228,2]
[313096958,1706739046382,-406.92160913,0.000228,2]
[313096960,1706739046454,-276.36,0.000228,2]
[313096961,1706739046468,-218.68827216,0.000228,2]
[313096962,1706739046479,-407.09957191,0.00022999,2]
[313096963,1706739046573,-4304.00917133,0.00022999,2]
[313096964,1706739046583,-483618.90103795,0.00023,2]
[313096965,1706739046642,-690.60504577,0.00023,2]
[313096966,1706739046715,-59991.5925083,0.00023,2]
[313096967,1706739060360,704.09301398,0.00020468,2]
[313096970,1706739280146,200.0,0.00022282,2]
[313096971,1706739336070,156.11,0.00022403,2]
[313096972,1706739446246,150.17,0.00020327,2]
[313096973,1706739539078,-413.22910588,0.00022665,2]
[313096974,1706739539100,-1139.78306733,0.00022666,2]
[313096975,1706739539122,-167.3655385,0.00022668,2]
[313096976,1706739539145,-167.36553845,0.00022714,2]
[313096977,1706739539167,-167.36553845,0.00022761,2]
[313096978,1706739539188,-1003.15,0.00022766,2]
[313096979,1706739539208,-155.0,0.00022767,2]
[313096980,1706739539229,-281.28534164,0.00022767,2]
[313096981,1706739539251,-414.32805963,0.00022768,2]
[313096982,1706739539278,-247.32726579,0.00022768,2]
[313096983,1706739539299,-356.64347884,0.00022798,2]
[313096984,1706739539320,-163.2389442,0.00022798,2]
[313096985,1706739539343,-167.36553845,0.00022807,2]
[313096986,1706739539365,-163.23894416,0.00022818,2]
[313096987,1706739539386,-163.23894416,0.00022839,2]
[313096988,1706739539408,-167.36553845,0.00022854,2]
[313096989,1706739539430,-163.23894416,0.00022859,2]
[313096990,1706739539450,-163.23894416,0.0002288,2]
[313096991,1706739539471,-7170.27,0.00022896,2]
[313096992,1706739539493,-570.875,0.00022896,2]
[313096993,1706739539514,-501.6773538,0.00022896,2]
[313096994,1706739539535,-500.0,0.00022897,2]
[313096995,1706739539556,-24.40891395,0.00022897,2]
[313096996,1706739569339,-1897.0,0.00022669,2]
[313096997,1706739594214,176.76,0.00022,2]
[313096998,1706739597733,500.0,0.00022,2]
[313096999,1706739662105,267.21,0.00022297,2]
[313097000,1706739739464,500.0,0.00022344,2]
[313097001,1706739764766,156.87,0.0002244,2]
[313097002,1706739783804,248.99,0.00022209,2]
[313097003,1706739783832,591.01,0.00022209,2]
[313097004,1706739924370,-264.1261331,0.00022663,2]
[313097005,1706739924390,-265.21514483,0.00022667,2]
[313097006,1706739924410,-155.0,0.00022667,2]
[313097007,1706739924430,-220.07533537,0.00022667,2]
[313097008,1706739924450,-286.37391764,0.00022667,2]
[313097009,1706739924470,-155.0,0.00022781,2]
[313097010,1706739924491,-768.24,0.00022787,2]
[313097011,1706739924510,-2111.9764,0.00022798,2]
[313097012,1706739924529,-210.0,0.00022798,2]
[313097013,1706739924549,-212.51916549,0.00022798,2]
[313097014,1706739924569,-213.72159227,0.00022798,2]
[313097015,1706739924591,-508.50482014,0.00022798,2]
[313097016,1706739924611,-153.64197556,0.00022798,2]
[313097017,1706739924631,-212.51916546,0.00022824,2]
[313097018,1706739924655,-156.87,0.00022829,2]
[313097019,1706739924676,-212.51916546,0.00022849,2]
[313097020,1706739924695,-508.50482014,0.00022849,2]
[313097021,1706739924715,-212.51916546,0.00022875,2]
[313097022,1706739924734,-499.99,0.00022875,2]
[313097023,1706739924754,-411.53450874,0.00022896,2]
[313097024,1706739924773,-4098.25189349,0.00022896,2]
[313097025,1706739924792,-413.63049317,0.00022896,2]
[313097026,1706739924812,-5453.28620354,0.00022896,2]
[313097027,1706739924833,-721.39319229,0.00022896,2]
[313097028,1706739924852,-172.37737233,0.00022896,2]
[313097029,1706739924871,-462.16379328,0.00022896,2]
[313097030,1706739924891,-500.0,0.00022897,2]
[313097031,1706739924911,-500.0,0.00022897,2]
[313097032,1706739924932,-500.0,0.00022897,2]
[313097033,1706739924952,-500.0,0.00022897,2]
[313097034,1706739924983,-500.0,0.00022897,2]
[313097035,1706739925003,-224.72004588,0.00022897,2]
[313097036,1706739925023,-129709.35521975,0.00022898,2]
[313097037,1706739925044,-330305.97047661,0.00022898,2]
[313097038,1706739929643,167.96,0.00021831,2]
[313097045,1706740172323,290.24744532,0.00022,4]
[313097046,1706740194512,328.0,0.00022455,2]
[313097070,1706740231530,-385.46359091,0.00022669,2]
[313097072,1706740231539,-398.7094312,0.0002267,2]
[313097074,1706740231551,-1216.2905688,0.0002267,2]
[313097076,1706740231560,-89.56625514,0.00022705,2]
[313097077,1706740231572,-67.30374486,0.00022705,2]
[313097078,1706740231581,-210.0,0.00022798,2]
[313097080,1706740231590,-153.64197553,0.00022798,2]
[313097082,1706740231599,-711.03,0.00022881,2]
[313097084,1706740231609,-151.55843084,0.00022888,2]
[313097086,1706740231618,-913.47263844,0.00022896,2]
[313097099,1706740232042,-86.52736156,0.00022896,2]
[313097100,1706740232053,-234.34249244,0.00022897,2]
[313097101,1706740232074,-41.86340083,0.00022897,2]
[313097102,1706740232109,-1142.53049999,0.00022897,2]
[313097103,1706740232121,-553.31996326,0.00022897,2]
[313097104,1706740232134,-609.86344662,0.00022897,2]
[313097105,1706740232161,-8015.31273513,0.00022897,2]
[313097106,1706740232175,-746.97333686,0.00022897,2]
[313097107,1706740232197,-2525.62198539,0.00022897,2]
[313097108,1706740232209,-1288.64349942,0.00022897,2]
[313097109,1706740232221,-383.23600317,0.00022897,2]
[313097110,1706740232238,-433.5118233,0.00022897,2]
[313097111,1706740232249,-800.0,0.00022897,2]
[313097112,1706740232261,-113168.47852578,0.00022897,2]
[313097113,1706740232270,-729440.78446696,0.00022898,2]
[313097114,1706740232280,-499.99,0.00022898,2]
[313097115,1706740232289,-4778.5322,0.00022898,2]
[313097116,1706740232299,-600.0,0.00022898,2]
[313097117,1706740232312,-2752.07846462,0.00022898,2]
[313097118,1706740234009,-1406.82289289,0.00022898,2]
[313097122,1706740237532,-153.64197553,0.00022832,2]
[313097123,1706740237542,-445.1545309,0.00022898,2]
[313097124,1706740237592,-265.25707154,0.00022898,2]
[313097125,1706740237604,-620.15941707,0.00022898,2]
[313097126,1706740237615,-315.19030927,0.00022898,2]
[313097127,1706740237654,-1145.0,0.00022898,2]
[313097128,1706740237666,-78591.64211371,0.00022898,2]
[313097129,1706740237675,-3249.23585907,0.00022898,2]
[313097130,1706740237686,-5136.62864425,0.00022898,2]
[313097131,1706740237698,-721.49416073,0.00022898,2]
[313097132,1706740238265,-13223.55133595,0.00022898,2]
[313097133,1706740238276,-471.1478,0.00022899,2]
[313097134,1706740238285,-100000.0,0.00022899,2]
[313097135,1706740238294,-1000.0,0.00022899,2]
[313097136,1706740238304,-500.0,0.00022899,2]
[313097137,1706740238315,-1000.0,0.00022899,2]
[313097138,1706740238329,-167.36553845,0.000229,2]
[313097139,1706740238339,-212.51916546,0.000229,2]
[313097140,1706740238350,-4212.65138649,0.000229,2]
[313097141,1706740238361,-156.590121,0.000229,2]
[313097142,1706740238370,-845.12,0.000229,2]
[313097143,1706740238379,-161.96428571,0.000229,2]
[313097144,1706740238389,-161.96428571,0.000229,2]
[313097145,1706740238400,-161.96428571,0.000229,2]
[313097146,1706740238411,-161.96428571,0.000229,2]
[313097147,1706740238422,-166.34838989,0.000229,2]
[313097148,1706740238433,-206.64381573,0.000229,2]
[313097149,1706740238443,-285.21213315,0.000229,6]
[313097150,1706740238454,-1848.89264937,0.000229,2]
[313097151,1706740238464,-6349.33976252,0.000229,2]
[313097152,1706740238475,-163.84839436,0.000229,2]
[313097153,1706740238485,-254.28702379,0.000229,2]
[313097155,1706740238495,-275.02799802,0.00022997,2]
[313097157,1706740238504,-4646.38861628,0.00022997,2]
[313097158,1706740238513,-267.83507573,0.00022997,2]
[313097159,1706740238523,-356.84010606,0.00022997,2]
[313097160,1706740238532,-164.59395117,0.00022997,2]
[313097161,1706740238543,-1005.67685991,0.00022997,2]
[313097162,1706740238552,-163.72705546,0.00022998,2]
[313097163,1706740238562,-155.0,0.00022998,2]
[313097164,1706740238572,-2373.61204905,0.00022998,2]
[313097165,1706740238582,-286.01482725,0.00022998,2]
[313097166,1706740238592,-162.69912584,0.00022998,2]
[313097167,1706740238602,-341.06135646,0.00022999,10]
[313097168,1706740238611,-341.06135645,0.00022999,10]
[313097169,1706740238621,-1609.96711413,0.00022999,2]
[313097170,1706740238630,-1850.49316422,0.00022999,2]
[313097171,1706740238640,-227.58903719,0.00022999,2]
[313097172,1706740238649,-217.64619136,0.00022999,2]
[313097173,1706740238663,-178.09683961,0.00022999,2]
[313097174,1706740238672,-560.28545666,0.00022999,2]
[313097175,1706740238681,-161.81185022,0.00022999,2]
[313097176,1706740238691,-176.11736143,0.00022999,2]
[313097177,1706740238700,-300.0,0.00022999,2]
[313097178,1706740238710,-1310.56400357,0.00023,3]
[313097179,1706740238719,-4299153.70026849,0.00023,2]
[313097180,1706740238732,-544.3953379,0.00023,2]
[313097181,1706740238743,-405.4670116,0.00023,2]
[313097182,1706740238755,-4401.08588356,0.00023,2]
[313097183,1706740238783,-51966.942506,0.00023,2]
[313097184,1706740238796,-24845.0033405,0.00023,2]
[313097185,1706740238807,-48795.5751412,0.00023,2]
[313097186,1706740238819,-209584.76310455,0.00023,2]
[313097187,1706740238831,-10421.3981924,0.00023,2]
[313097188,1706740238845,-948.984565,0.00023,2]
[313097191,1706740240074,-1565.62,0.00023,2]
[313097192,1706740240133,-21343.602,0.00023,2]
[313097193,1706740240189,-876.7349785,0.00023,2]
[313097194,1706740240200,-746.3389047,0.00023,2]
[313097195,1706740240212,-707.91511391,0.00023,2]
[313097196,1706740240912,-4017.98950393,0.00023,2]
[313097197,1706740240926,-4254.7,0.00023,2]
[313097209,1706740241142,-0.31224374,0.00023,2]
[313097216,1706740242694,-508.50482014,0.00022798,2]
[313097217,1706740242704,-153.64197553,0.00022866,2]
[313097218,1706740242713,-3569019.03401431,0.00023,2]
[313097229,1706740245678,-500.0,0.00022798,2]
[313097230,1706740245688,-500.0,0.00022897,2]
[313097231,1706740245698,-385.46359091,0.00022999,2]
[313097232,1706740245707,-81715.44735577,0.00023,2]
[313097233,1706740245721,-26242.64820361,0.00023,2]
[313097234,1706740245783,-8545.056,0.00023,2]
[313097251,1706740246121,-1168.91608421,0.00023,2]
[313097264,1706740407788,1930.73,0.00021964,2]
[313097265,1706740414026,150.0,0.00022495,2]
[313097266,1706740414903,225.75,0.00020625,2]
[313097267,1706740436444,161.73858555,0.00022441,2]
[313097268,1706740441756,627.941124,0.00022428,2]
[313097269,1706740462978,158.04578453,0.00020625,2]
[313097270,1706740472866,167.7325939,0.00020625,5]
[313097271,1706740485862,2797.05172361,0.00021391,7]
[313097272,1706740489694,155.4056809,0.00020265,2]
[313097273,1706740513459,277.57,0.00021894,2]
[313097274,1706740525948,-270.94190901,0.00022517,2]
[313097275,1706740525970,-161.73858553,0.00022518,2]
[313097276,1706740525993,-52839.0660394,0.00022518,2]
[313097277,1706740526014,-420.51663594,0.00022528,2]
[313097278,1706740526035,-155.12126467,0.00022539,2]
[313097279,1706740526055,-155.0,0.00022539,2]
[313097280,1706740526075,-159.87613246,0.00022539,2]
[313097281,1706740526095,-487.24115174,0.00022539,2]
[313097282,1706740526114,-292.8513202,0.00022539,2]
[313097283,1706740526134,-155.95087656,0.00022539,2]
[313097284,1706740526153,-155.0,0.00022539,2]
[313097285,1706740526173,-155.0,0.00022539,2]
[313097286,1706740526193,-282.15685369,0.00022539,2]
[313097287,1706740526212,-155.85642707,0.00022539,2]
[313097288,1706740526233,-161.73858553,0.00022594,2]
[313097289,1706740597027,156.87,0.00022253,2]
[313097290,1706740626190,352.14,0.00022203,2]
[313097291,1706740654381,1248.31575144,0.0002248,2]
[313097292,1706740666314,737.6,0.00022076,2]
[313097293,1706740696879,268.45,0.00022022,2]
[313097294,1706740841069,150.0,0.00022,2]
[313097295,1706740890557,440.32,0.00020033,2]
[313097296,1706740890749,440.32,0.00022297,2]
[313097297,1706740991190,919.64,0.00021959,2]
[313097298,1706741091907,157.94,0.00022187,2]
[313097299,1706741106305,409.92,0.0002194,2]
[313097300,1706741315077,396.28,0.00019876,2]
[313097301,1706741315295,396.28,0.0002214,2]
[313097302,1706741332755,1670.0,0.00022501,2]
[313097303,1706741414610,766.36,0.00021785,2]
[313097307,1706741431741,-161.73858553,0.00022554,2]
[313097308,1706741431751,-166.322826,0.00022567,4]
[313097309,1706741431760,-150.0,0.00022653,2]
[313097310,1706741431769,-2.28310375,0.00022653,2]
[313097311,1706741431794,-147.71689625,0.00022653,2]
[313097312,1706741431803,-731.17,0.00022654,2]
[313097313,1706741431812,-710.96,0.00022654,2]
[313097314,1706741431821,-725.27,0.00022654,2]
[313097315,1706741431831,-738.46,0.00022654,2]
[313097316,1706741431842,-720.02,0.00022654,2]
[313097317,1706741431852,-731.21,0.00022654,2]
[313097318,1706741431862,-728.45,0.00022654,2]
[313097319,1706741431871,-718.94,0.00022654,2]
[313097320,1706741431880,-161.73858553,0.00022669,2]
[313097321,1706741431890,-717.81,0.00022677,2]
[313097322,1706741431901,-888.3733,0.00022697,2]
[313097323,1706741431910,-2978.87181537,0.00022698,2]
[313097324,1706741431927,-600.0,0.00022698,2]
[313097325,1706741431939,-519.95054786,0.00022698,2]
[313097326,1706741431951,-560.25083755,0.00022698,2]
[313097327,1706741431964,-727.69660047,0.00022698,2]
[313097328,1706741431976,-640.14719797,0.00022698,2]
[313097329,1706741431993,-708.73810078,0.00022698,2]
[313097330,1706741432003,-150.0,0.00022728,2]
[313097332,1706741432012,-392.75,0.00022728,2]
[313097333,1706741432022,-150.0,0.00022729,2]
[313097335,1706741432032,-499.99,0.00022747,2]
[313097337,1706741432041,-25.31447602,0.0002275,2]
[313097339,1706741432053,-124.68552398,0.0002275,2]
[313097341,1706741432062,-221.13755376,0.00022759,2]
[313097343,1706741432072,-150.0,0.00022766,2]
[313097346,1706741432082,-150.0,0.00022773,2]
[313097349,1706741432092,-150.0,0.00022775,2]
[313097352,1706741432101,-150.0,0.00022779,2]
[313097355,1706741432110,-150.0,0.00022779,2]
[313097358,1706741432120,-161.73858553,0.00022785,2]
[313097361,1706741432129,-150.0,0.00022787,2]
[313097363,1706741432138,-1000.0,0.00022796,2]
[313097366,1706741432148,-228.75937488,0.00022796,2]
[313097369,1706741432157,-150.0,0.00022796,2]
[313097372,1706741432166,-129709.35521975,0.00022797,2]
[313097375,1706741432175,-207.6343,0.00022798,2]
[313097378,1706741432185,-1000.0,0.00022798,2]
[313097381,1706741432194,-66268.0675666,0.00022798,2]
[313097385,1706741432206,-437.93269508,0.00022798,2]
[313097389,1706741432217,-970.5346668,0.00022798,2]
[313097391,1706741432228,-1152.42565523,0.00022798,2]
[313097396,1706741432307,-440.61503046,0.00022798,2]
[313097397,1706741432319,-1703.3328388,0.00022798,2]
[313097398,1706741432334,-1210.24940779,0.00022798,2]
[313097400,1706741437773,-21308.6707,0.00022798,2]
[313097401,1706741437833,-6508.17143924,0.00022798,2]
[313097402,1706741437844,-2201.9674,0.00022798,2]
[313097403,1706741437854,-982.1756,0.00022798,2]
[313097404,1706741437865,-245000.0,0.00022798,2]
[313097405,1706741437875,-254.25355209,0.000228,2]
[313097406,1706741437886,-150.0,0.00022813,2]
[313097407,1706741437895,-150.0,0.00022829,2]
[313097408,1706741437904,-150.0,0.0002284,2]
[313097409,1706741437913,-150.0,0.00022841,2]
[313097410,1706741437923,-150.0,0.00022849,2]
[313097411,1706741437932,-150.0,0.00022857,2]
[313097412,1706741437941,-150.0,0.00022864,2]
[313097413,1706741437950,-150.0,0.00022887,2]
[313097414,1706741437960,-150.0,0.00022887,2]
[313097415,1706741437969,-197.39115375,0.00022888,2]
[313097416,1706741437979,-357.11876471,0.00022897,10]
[313097417,1706741437988,-302.74667177,0.00022897,2]
[313097418,1706741437999,-324940.67750754,0.00022898,2]
[313097419,1706741438009,-150.0,0.00022899,2]
[313097420,1706741438018,-500.0,0.000229,2]
[313097421,1706741438027,-181.70536632,0.000229,2]
[313097422,1706741438037,-874.0837215,0.000229,2]
[313097423,1706741438046,-19895.23096681,0.000229,2]
[313097425,1706741438056,-5000.0,0.000229,2]
[313097427,1706741438065,-156.53137655,0.000229,2]
[313097429,1706741438074,-1523.71711115,0.000229,2]
[313097431,1706741438084,-1523.7171111,0.000229,2]
[313097432,1706741438093,-1523.7171111,0.000229,2]
[313097433,1706741438102,-1523.7171111,0.000229,2]
[313097435,1706741438112,-1523.7171111,0.000229,2]
[313097437,1706741438121,-1523.7171111,0.000229,2]
[313097439,1706741438130,-1523.7171111,0.000229,2]
[313097441,1706741438139,-1523.7171111,0.000229,2]
[313097443,1706741438148,-1523.7171111,0.000229,2]
[313097445,1706741438157,-1523.7171111,0.000229,2]
[313097447,1706741438166,-1523.7171111,0.000229,2]
[313097449,1706741438175,-1523.7171111,0.000229,2]
[313097451,1706741438184,-1523.7171111,0.000229,2]
[313097453,1706741438193,-1523.7171111,0.000229,2]
[313097455,1706741438202,-1523.7171111,0.000229,2]
[313097458,1706741438212,-1523.7171111,0.000229,2]
[313097460,1706741438221,-161.73858553,0.000229,2]
[313097461,1706741438230,-1523.7171111,0.000229,2]
[313097464,1706741438239,-1523.7171111,0.000229,2]
[313097465,1706741438249,-1523.7171111,0.000229,2]
[313097468,1706741438258,-1523.7171111,0.000229,2]
[313097470,1706741438267,-150.0,0.00022902,2]
[313097472,1706741438276,-150.0,0.00022912,2]
[313097474,1706741438286,-150.0,0.00022921,2]
[313097476,1706741438294,-150.0,0.00022939,2]
[313097477,1706741438303,-150.0,0.00022942,2]
[313097479,1706741438313,-150.0,0.00022944,2]
[313097482,1706741438323,-151.0201,0.00022948,3]
[313097484,1706741438332,-151.0201,0.00022948,3]
[313097485,1706741438341,-151.0201,0.00022948,3]
[313097487,1706741438351,-151.0201,0.00022948,3]